Cogmind - Beta 14 @@@ ROGUE MODE // 2024.11.08 @ 15:41:37 Player: Semiceri Result: Destroyed by G-47 Trooper with Particle Gun Performance ------------- Evolutions (2) 1000 Regions Visited (4) 800 Robots Destroyed (48) 240 Value Destroyed (1365) 1365 Prototype IDs (1) 20 Alien Tech Used (0) 0 Bonus (500) 500 TOTAL SCORE: 3925 Bonus ------- High Alert Combat Kills 63 Follower Combat Kills 487 Friendly Fire -50 Cogmind --------- Core Integrity 0/550 Matter 183/300 Energy 100/100 System Corruption 0% Temperature Cool (9) Movement Core (1400) Ox27 Location -8/Materials Parts ------- > --- POWER (2) -------- (None) > --- PROPULSION (2) --- (None) > --- UTILITY (4) ------ Huge Storage Unit Advanced Visual Processing Unit Advanced Targeting Computer > --- WEAPON (3) ------- Minigun > --- INVENTORY (25) --- Power Shielding Peak State ------------ > --- POWER ------------ Ion Engine Cooled Ion Engine > --- PROPULSION ------- Light Treads Light Treads > --- UTILITY ---------- Huge Storage Unit Light Armor Plating Drone Bay Drone Bay > --- WEAPON ----------- Beam Rifle Autogun Light Cannon > --- INVENTORY -------- Light Treads Airjet Improved Heat Sink Advanced Visual Processing Unit Advanced Targeting Computer Power Shielding Drone Bay Datajack [Rating: 25] Favorites ----------- Power Cooled Ion Engine Engine Cooled Ion Engine Power Core Light Nuclear Core Propulsion Light Treads Treads Light Treads Wheel Compact Wheel Hover Unit Airjet Utility Huge Storage Unit Device Drone Bay Storage Huge Storage Unit Processor Targeting Computer Protection Power Shielding Weapon Small Laser Energy Gun Small Laser Ballistic Gun Light Assault Rifle Ballistic Cannon Light Cannon Launcher Grenade Launcher Special Melee Weapon Datajack Build | -11 -10 -9 -9 -8 ------- Run | Yrd Mat Mat Sto Mat Slots Evolved 4 | . . 2 . 2 Power 1 | . . . . 1 Propulsion . | . . . . . Utility 2 | . . 1 . 1 Weapon 1 | . . 1 . . Parts Attached 50 | 6 12 19 3 10 Power 8 | 1 2 4 . 1 Engine 7 | 1 2 3 . 1 Core 1 | . . 1 . . Reactor . | . . . . . Propulsion 11 | 2 2 5 . 2 Treads 8 | 2 . 5 . 1 Leg . | . . . . . Wheel 2 | . 2 . . . Hover 1 | . . . . 1 Flight . | . . . . . Utility 15 | 1 4 3 2 5 Device 5 | . . 1 1 3 Storage 3 | 1 2 . . . Processor 5 | . 2 1 . 2 Hackware . | . . . . . Protection 2 | . . 1 1 . Artifact . | . . . . . Weapon 16 | 2 4 7 1 2 Energy Gun 9 | 2 2 5 . . Energy Cannon . | . . . . . Ballistic Gun 3 | . 1 . 1 1 Ballistic Cannon 2 | . . 2 . . Launcher 1 | . 1 . . . Special Weapon . | . . . . . Impact Weapon . | . . . . . Slashing Weapon . | . . . . . Piercing Weapon . | . . . . . Special Melee Weapon 1 | . . . . 1 Unidentified Prototypes 1 | . . 1 . . Parts Lost 23 | . 3 5 . 15 Power 2 | . . . . 2 Propulsion 7 | . 2 1 . 4 Utility 6 | . . 1 . 5 Weapon 8 | . 1 3 . 4 Highest Loss Streak 10 | . 2 3 . 10 To Critical Strikes . | . . . . . Average Slot Usage (%) 91 | . 92 91 100 75 Engine 11 | . 13 7 11 13 Core 1 | . . 2 . . Treads 14 | . 5 18 22 13 Wheel 7 | . 21 2 . . Device 4 | . . 1 11 13 Storage 10 | . 11 11 11 9 Processor 7 | . 14 8 . 2 Protection 6 | . . 9 11 5 Energy Gun 14 | . 9 21 17 5 Ballistic Gun 6 | . 10 2 4 6 Ballistic Cannon 3 | . . 1 11 6 Launcher 1 | . 3 2 . . Peak Build Rating 25 | 6 8 15 18 25 Average Rating 11 | 5 6 10 15 18 On Entrance 9 | . 6 8 15 18 Naked Turns . | . . . . . Heaviest Build 117 | 13 89 97 106 117 Greatest Support 40 | 40 40 40 40 40 Greatest Overweight (x) 30 | . 3 4 2 30 Average Overweight (x) 2 | . 2 2 2 4 Largest Inventory Capacity 25 | 8 25 25 25 25 Average Capacity 22 | 7 19 25 25 25 Most Carried 14 | 6 11 14 12 8 Average Carried 7 | 3 6 10 8 6 Final Capacity 25 | 8 25 25 25 25 Final Carried 11 | 6 11 10 7 1 Class Distribution -------------------- 48% | Mutant 18% | Scavenger-Tank 11% | Gunner 7% | Tank 6% | Commander-Tank 6% | Scavenger-Gunner Dominant Class ---------------- Mutant | -10/Materials Gunner | -9/Materials Tank | -9/Storage Scavenger-Tank | -8/Materials Resources | -11 -10 -9 -9 -8 ----------- Run | Yrd Mat Mat Sto Mat Matter Collected 878 | 213 208 233 150 74 Remotely . | . . . . . Salvage Created 1637 | . 466 710 299 162 Parts 114 | . 39 47 17 11 Haulers Intercepted 2 | . . 2 . . Recyclers Shooed 1 | . . . 1 . Parts Field Recycled . | . . . . . Retrieved Matter . | . . . . . Parts Self-Destructed . | . . . . . Prevented . | . . . . . Kills | -11 -10 -9 -9 -8 ------- Run | Yrd Mat Mat Sto Mat Combat Hostiles Destroyed 34 | . 12 11 7 4 Guns 24 | . 7 9 5 3 Cannons 3 | . . . 2 1 AOE 7 | . 5 2 . . Classes Destroyed 10 | . 5 4 1 . Worker 1 | . 1 . . . Builder 2 | . 1 1 . . Hauler 2 | . . 2 . . Recycler 1 | . . 1 . . Operator 1 | . . . 1 . Watcher 7 | . 3 3 . 1 Swarmer 5 | . 5 . . . Grunt 19 | . 7 7 4 1 Brawler 2 | . . 1 1 . Sentry 8 | . . 3 2 3 Best Kill Streak 7 | . 7 3 5 2 Combat Bots Only 5 | . 3 2 5 2 Max Kills in Single Turn 3 | . 2 3 1 1 Gunslinging . | . . . . . Exploded 2 | . 2 1 . . Melee . | . . . . . Uniques/NPCs Destroyed . | . . . . . Combat | -11 -10 -9 -9 -8 -------- Run | Yrd Mat Mat Sto Mat Hostile Shots Fired 387 | . 85 87 22 193 Missed 123 | . 28 29 7 59 Damage Taken 3661 | . 680 758 202 2021 Core 902 | . 147 162 41 552 Absorbed by Shields . | . . . . . Redirected to Shielding 15 | . . 8 7 . Core Remaining (%) 63 | 100 41 . 49 . Volleys Fired 147 | . 53 45 15 34 Largest 3 | . 2 3 3 3 Hottest 131 | . 80 120 131 114 Shots Fired 289 | . 76 108 45 60 Gun 239 | . 71 101 30 37 Cannon 38 | . . . 15 23 Launcher 12 | . 5 7 . . Special . | . . . . . Kinetic 95 | . 12 15 22 46 Thermal 141 | . 18 86 23 14 Explosive 12 | . 5 7 . . Electromagnetic 41 | . 41 . . . Robot Hit Streak 21 | . 7 9 10 21 Robot Miss Streak 6 | . 6 6 2 3 Penetration Max . | . . . . . Secondary Targets 4 | . 2 2 . . Max Gunslinging Chain 1 | . 1 1 . . Shots Hit Robots 184 | . 38 71 26 49 Core Hits 90 | . 25 35 15 15 Critical Kills . | . . . . . Critical Parts Destroyed . | . . . . . Critical Strikes 4 | . . . 2 2 Burn 3 | . . . 1 2 Blast 1 | . . . 1 . Melee Attacks 2 | . . . . 2 Impact . | . . . . . Slashing . | . . . . . Piercing . | . . . . . Sneak Attacks . | . . . . . Combat Hostiles . | . . . . . Follow-up Attacks . | . . . . . Damage Inflicted 3241 | . 894 1050 469 828 Guns 1975 | . 480 731 271 493 Cannons 477 | . . . 192 285 Explosions 722 | . 414 308 . . Melee . | . . . . . Ramming 67 | . . 11 6 50 Kinetic 1044 | . 71 77 265 631 Thermal 1335 | . 336 654 198 147 Explosive 512 | . 204 308 . . Electromagnetic 283 | . 283 . . . Impact . | . . . . . Slashing . | . . . . . Piercing . | . . . . . Highest Corruption 2 | . . . 2 . Average Corruption 2 | . . . 2 . Corruption Purged . | . . . . . Corruption Blocked . | . . . . . Effects 4 | . . . 4 . Message Errors 1 | . . . 1 . Matter Fused 2 | . . . 2 . Energy Discharges 1 | . . . 1 . Overload Shots . | . . . . . Overflow Damage 14 | . 6 . 8 . Projectiles 8 | . . . 8 . Explosions 6 | . 6 . . . Melee . | . . . . . Knockbacks . | . . . . . Impact . | . . . . . Kinetic . | . . . . . Secondary . | . . . . . Self-Inflicted Damage 49 | . 3 46 . . Shots 3 | . 1 2 . . Rammed 17 | . . 4 2 11 Targets Rammed 17 | . . 4 2 11 Kicked . | . . . . . Crushed . | . . . . . Highest Temperature 288 | . 156 288 222 252 Average Temperature 70 | . 40 80 56 102 Received Heat Transfer 1683 | . 348 360 93 882 Effects 1 | . . 1 . . Energy Bleed 1 | . . 1 . . Siege Activations . | . . . . . Robots Corrupted . | . . . . . Combat Hostiles . | . . . . . Parts Fried . | . . . . . Impact Corruptions . | . . . . . Robots Melted . | . . . . . Combat Hostiles . | . . . . . Parts Melted 3 | . . 1 2 . Heat Transferred 3074 | . 525 1475 556 518 Parts Sabotaged . | . . . . . Parts Stolen . | . . . . . Parts Stripped . | . . . . . Power Chain Reactions 2 | . 2 . . . Alert | -11 -10 -9 -9 -8 ------- Run | Yrd Mat Mat Sto Mat Peak Influence 531 | . 314 156 531 274 Initial 209 | . . 20 18 209 Average 105 | . 80 41 258 127 Maximum Alert Level 2 | . 1 . 2 1 Low Security (%) 80 | 100 87 100 51 54 Level 1 11 | . 12 . 3 45 Level 2 8 | . . . 45 . Level 3 . | . . . . . Level 4 . | . . . . . Level 5 . | . . . . . High Security . | . . . . . Max Security . | . . . . . Squads Dispatched 12 | . 4 2 6 . Investigation 3 | . 3 . . . Extermination . | . . . . . Reinforcement 4 | . 1 2 1 . Assault 2 | . . . 2 . Garrison 3 | . . . 3 . Intercept . | . . . . . Searches Triggered . | . . . . . Construction Impeded 1 | . . 1 . . Haulers Reinforced . | . . . . . Active Scanning Responses . | . . . . . Cargo Convoy Interrupts . | . . . . . Stealth | -11 -10 -9 -9 -8 --------- Run | Yrd Mat Mat Sto Mat Distress Signals 9 | . 1 3 . 5 Communications Jammed . | . . . . . Distress Signals . | . . . . . Times Spotted 78 | . 23 18 25 12 Peak Tracking Total 12 | . 4 2 12 5 Tactical Retreats 12 | . 8 1 1 2 Traps | -11 -10 -9 -9 -8 ------- Run | Yrd Mat Mat Sto Mat Traps Triggered 7 | . 2 4 1 . Indirectly . | . . . . . Trap Hack Attempts . | . . . . . Triggered . | . . . . . Disarmed . | . . . . . Reprogrammed . | . . . . . Reused . | . . . . . Traps Extracted . | . . . . . Installed . | . . . . . Triggered . | . . . . . Machines | -11 -10 -9 -9 -8 ---------- Run | Yrd Mat Mat Sto Mat Machines Disabled 4 | . 1 2 . 1 Max in Single Turn 1 | . 1 1 . 1 Machines Repaired . | . . . . . Machines Dismantled . | . . . . . Machines Sabotaged . | . . . . . Overloaded Fab Kills . | . . . . . Hacking | -11 -10 -9 -9 -8 --------- Run | Yrd Mat Mat Sto Mat Machines Accessed 12 | . 6 1 3 2 Terminals 11 | . 5 1 3 2 Fabricators . | . . . . . Repair Stations . | . . . . . Recycling Units 1 | . 1 . . . Scanalyzers . | . . . . . Garrison Access . | . . . . . Total Hacks 23 | . 11 2 5 5 Successful 16 | . 8 2 2 4 Failed 7 | . 3 . 3 1 Catastrophic . | . . . . . Database Lockouts . | . . . . . Manual . | . . . . . Terminals 22 | . 10 2 5 5 Fabricators . | . . . . . Repair Stations . | . . . . . Recycling Units 1 | . 1 . . . Scanalyzers . | . . . . . Garrison Access . | . . . . . Terminal Hacks 15 | . 7 2 2 4 Record 8 | . 5 . . 3 Robot Analysis 1 | . 1 . . . Open Door 1 | . . . 1 . Locate Traps 1 | . . . 1 . Reinforcement Status 1 | . . 1 . . Recall Investigation 1 | . 1 . . . Recall Reinforcements 1 | . . 1 . . Zone Layout 1 | . . . . 1 Fabricator Hacks . | . . . . . Repair Station Hacks . | . . . . . Recycling Unit Hacks 1 | . 1 . . . Recycle Component 1 | . 1 . . . Scanalyzer . | . . . . . Garrison Access Hacks . | . . . . . Unauthorized Hacks . | . . . . . Terminals . | . . . . . Fabricators . | . . . . . Repair Stations . | . . . . . Recycling Units . | . . . . . Scanalyzers . | . . . . . Garrison Access . | . . . . . Data Cores Recovered . | . . . . . Used . | . . . . . Hacking Detections 4 | . 2 . 2 . Full Trace Events 1 | . 1 . . . Feedback Events . | . . . . . Feedback Blocked . | . . . . . Robot Schematics Acquired . | . . . . . Robots Built . | . . . . . Authchips . | . . . . . Time . | . . . . . Total Robot Build Rating . | . . . . . Part Schematics Acquired . | . . . . . Parts Built . | . . . . . Authchips . | . . . . . Time . | . . . . . Total Part Build Rating . | . . . . . Parts Repaired . | . . . . . Time . | . . . . . Parts Recycled 1 | . 1 . . . Recycled Matter . | . . . . . Retrieved Matter . | . . . . . Retrieved Components . | . . . . . Parts Scanalyzed . | . . . . . Part Schematics Acquired . | . . . . . Parts Damaged . | . . . . . Bothacking | -11 -10 -9 -9 -8 ------------ Run | Yrd Mat Mat Sto Mat Used RIF Installer . | . . . . . Robots Hacked 1 | . . . . 1 Non-combat . | . . . . . Combat 1 | . . . . 1 Robot Hacks Applied 1 | . . . . 1 parse_system 1 | . . . . 1 Relay Couplers Released . | . . . . . Fabnet Peak Effective % . | . . . . . Robots Rewired . | . . . . . Allies Hacked . | . . . . . Hacks Repelled . | . . . . . Allies | -11 -10 -9 -9 -8 -------- Run | Yrd Mat Mat Sto Mat Total Allies 12 | . . . 12 . Largest Group 10 | . . . 10 . Highest-Rated Group 134 | . . . 134 . Highest-Rated Ally 31 | . . . 31 . Total Orders . | . . . . . Ally Attacks 148 | . . . 148 . Total Damage 1661 | . . . 1661 . Kills 25 | . . . 25 . Allies Corrupted . | . . . . . Allies Melted . | . . . . . Intel | -11 -10 -9 -9 -8 ------- Run | Yrd Mat Mat Sto Mat Robot Analysis Total 1 | . 1 . . . Derelict Logs Recovered . | . . . . . Drone Launches 9 | . . . 2 7 Drone Recoveries 3 | . . . . 3 Exploration | -11 -10 -9 -9 -8 ------------- Run | Yrd Mat Mat Sto Mat Turns Passed 5697 | 171 1631 1931 1093 871 Spaces Moved 2288 | 105 1069 625 314 175 Core 27 | 10 2 . . 15 Treads 1185 | 95 149 470 314 157 Legs . | . . . . . Wheels 1073 | . 918 155 . . Hover 3 | . . . . 3 Flight . | . . . . . Fastest Speed 50 | 50 90 135 320 320 Average Speed 219 | 149 130 277 320 420 Slowest Speed 1550 | 160 160 480 320 1550 Overloaded Moves . | . . . . . Propulsion Burnouts . | . . . . . Robots Hopped . | . . . . . Cave-ins Triggered . | . . . . . Exploration Rate (%) 33 | 6 86 27 31 18 Regions Visited 4 Branch Regions 1 Pre-discovered Areas . | . . . . . Known Exits Taken . | . . . . . Unknown Exits Taken 4 | 1 1 1 1 . Scrap Searched . | . . . . . Spaces Dug . | . . . . . Terrain Destroyed 68 | . 33 35 . . Melee . | . . . . . Projectile . | . . . . . AOE 68 | . 33 35 . . Terrain Rammed . | . . . . . Walls Destroyed . | . . . . . Machines Disabled . | . . . . . Actions | -11 -10 -9 -9 -8 --------- Run | Yrd Mat Mat Sto Mat Total 2679 | 116 1235 719 370 239 Wait 109 | . 74 9 22 4 Move 2284 | 104 1068 624 313 175 Hop . | . . . . . Pick Up 48 | 6 19 14 6 3 Fast Attach 12 | 6 2 3 . 1 Attach 26 | . 7 10 . 9 Detach 2 | . 2 . . . Swap 12 | . 3 6 3 . Drop 20 | . 7 4 9 . Fire 147 | . 53 45 15 34 Melee 2 | . . . . 2 Ram . | . . . . . Kick . | . . . . . Crush 17 | . . 4 2 11 Escape Stasis . | . . . . . Rewire . | . . . . . Trap . | . . . . . Miscellaneous . | . . . . . Route ------- -11/Scrapyard -10/Materials (discovered 3 exits: *Mat x2 / [*Min]) -9/Materials (discovered 2 exits: [*Min] / *Sto) -9/Storage -8/Materials History --------- Turn | Location | Event 4 | -11/Scrapyard | Discovered new exit (range 16) 172 | -11/Scrapyard | Entered Materials 306 | -10/Materials | Build established: Mutant 534 | -10/Materials | Core integrity fell below 50% 1092 | -10/Materials | Discovered new exit (range 3) 1197 | -10/Materials | Discovered new exit (range 13) 1601 | -10/Materials | Discovered new exit (range 12) 1803 | -10/Materials | Entered another Materials area 1803 | -9/Materials | Evolved 2 slots: Utility x1, Weapon x1 2769 | -9/Materials | Build established: Gunner 3255 | -9/Materials | Build established: Scavenger-Gunner 3359 | -9/Materials | Lost 3 parts (1n1u1w) 3431 | -9/Materials | Discovered new exit (range 13) 3499 | -9/Materials | Discovered new exit (range 12) 3734 | -9/Materials | Entered Storage 3804 | -9/Storage | Build established: Scavenger-Tank 3935 | -9/Storage | Assisted by bots powering up and referring to "LRC-V3" 4222 | -9/Storage | Build established: Commander-Tank 4240 | -9/Storage | Met a pair of Derelict thieves 4289 | -9/Storage | Garrison activated, responded to threat 4368 | -9/Storage | Lost 8 allies 4576 | -9/Storage | Core integrity fell below 50% 4641 | -9/Storage | Discovered new exit (range 16) 4724 | -9/Storage | Build established: Tank 4827 | -9/Storage | Entered Materials 4827 | -8/Materials | Accompanied by 1 ally 4827 | -8/Materials | Evolved 2 slots: Power x1, Utility x1 5134 | -8/Materials | Build established: Scavenger-Tank 5493 | -8/Materials | Lost 10 parts (2p2n4u2w) 5552 | -8/Materials | Core integrity fell below 50% 5598 | -8/Materials | Core integrity fell below 20% 5653 | -8/Materials | Build established: Mutant 5698 | -8/Materials | Destroyed by G-47 Trooper with Particle Gun Last Messages --------------- Cld. Ion Engine destroyed. Drone destroyed. A-02 Transporter destroyed. Acquired 44 matter. Critical hit (Burn: +37). W-25 Informer sends out distress signal. Critical hit (Burn: +37). Airjet destroyed. Hadron Collector disabled. Critical hit (Burn: +37). Lgt. Treads destroyed. Acquired Minigun. K-01 Serf collects debris. G-47 Trooper destroyed. K-01 Serf collects debris. Y-45 Defender destroyed. R-06 Scavenger collects Lgt. Treads. R-06 Scavenger collects Imp. Heat Sink. W-25 Informer sends out distress signal. Imp. Heat Sink destroyed. Map ----- +----------------------------------------------------+ | ??????????????????#### / ! "" #??? | | ?????????????????? ## # #??? | | ??????????????????T ## ####### # #??? | | ?????????????????? + #?????# #####+##??? | | ?????????????????? #####+####?????# #"""# #???? | | ?????????????????? #?# #?????# #"Y"# #???? | | ??????????????????????# ???????????# #???? | | ???????????????????????????????????# #???? | | ???????????????????????????????????# #???? | | ???????????????????????????????????# """ #???? | | ???????????????????????????????????# """"" #???? | | ???????????????????????????????????# """"" #???? | | ???????????????????????????????????+ """"" #???? | | ???????????????????????????????????# """ #???? | | ???????????????????????????? ??????# #???? | | ???????????????????????????# ??????# #???? | | ???????????????????????????# ??????# """ #???? | | ???????????????????????????# ??????# """"" #???? | | ???????????????????????????# ??????# """"" #???? | | ???????????????????????????# ####### """"" #???? | | ???????????????????????????# "" #???? | | ?????????????????????????### #???? | | ????????????????????###### # % #???? | | ????????????????????# ! #% #???? | | ????????????????????# # = ########???? | | ????????????????????# b@ # !!* ########???? | | ????????????????????# # =!%[ # """ #???? | | ????????????????????# ![] # !/% # """ #???? | | ???????????? ! #g%[] # % # """ !#???? | | ???????????? w/ [ ]*%+ + #???? | | ?????????????""" # %#= # #???? | | ??????????????""" # "" # # ! #???? | | ???????????????" !?# """ ###################???? | | ??????????????####??# """ #?????????????????????? | | ????????????????????# """ =#?????????????????????? | | ????????????????????# #?????????????????????? | | ????????????????????########?????????????????????? | | ?????????????????????????????????????????????????? | | ?????????????????????????????????????????????????? | | ?????????????????????????????????????????????????? | | ?????????????????????????????????????????????????? | | ?????????????????????????????????????????????????? | | ?????????????????????????????????????????????????? | | ?????????????????????????????????????????????????? | | ?????????????????????????????????????????????????? | | ?????????????????????????????????????????????????? | | ?????????????????????????????????????????????????? | | ?????????????????????????????????????????????????? | | ?????????????????????????????????????????????????? | | ?????????????????????????????????????????????????? | +----------------------------------------------------+ Best States ------------- Heat Dissipation 45 Energy Generation 19 Energy Capacity 430 Matter Stores 300 Matter Capacity 300 Sight Range 20 Terrain Scan Density 10 Armor Coverage 150 Power Shielding 33 Evasion (%) 42 Targeting Accuracy 8 Recoil Reduction 2 Item Schematics ----------------- None Robot Schematics ------------------ None Fabricated ------------ Nothing Alien Tech Used ----------------- None Achievements -------------- GoHome() Loot Pinata Novice Programmer Risk Taker The More The Merrier Challenges ------------ None Game ------ Seed VariablePrecisionSteel Manual? 0 Play Time 00:44:47 Cumulative 1.9 hours Start 2024.11.08 @ 00:08:32 End 2024.11.08 @ 15:41:37 Sessions 2 Manual Loads 0 Difficulty Rogue Special Mode None Game No. 3 Rogue 3 Adventurer 0 Explorer 0 Win Type - Total 0 Types 0/0/0/0/0/0/0/0/0 Lore% 2 Gallery% 5 Achievement% 6 Wizard Run 0 Options --------- Layout 1 ASCII 0 Keyboard 1 Movement Arrows Keybinds 0 Fullscreen 1 Font 32/SmallcapsGlow Map View 77x35 Zoom Use 0% Tactical HUD 0 Map Filters NONE Filters NONE Steam 1 RUN: e3d48e92-c198-467e-bb97-3cb49947d683